{"text_format":"1","workbook":"xlsx","n_sheets":7,"sheets":["Wstęp","Makro i swap","Odpady","KOSZTY NETTO>>","koszty netto_nieruch ogólnodost","Rekompensata>>","Rekompensata_ogolem"],"not_rendered":{"charts":0,"images":1,"macros":1,"external_links":0,"defined_names":7,"comments":1,"pivot_tables":0},"unopened":[],"bounds":{"document_bytes":16777216,"sheet_cells":100000,"rows_first":2000,"rows_last":500,"rows_between":2000,"halvings":0,"cell_chars":16384,"cell_head_chars":4096},"cells_cut":0,"cells_raw":0,"read":"whole","date_system":"1900"}

{"sheet":"Wstęp","index":0,"n_rows":1,"n_cols":2,"rows_kept":1,"cut":false,"hidden":false,"merged":[]}
[null,"Model bazuje na danych i informacjach otrzymanych od Zlecającego oraz uzyskanych ze źródeł publicznych, jeżeli źródła te mogą być racjonalnie uznane za wiarygodne. Zakładamy, że wszelkie otrzymane dane i informacje dotyczące planowanych kosztów i przychodów są aktualne na moment przygotowywania Modelu, dokładne, kompletne i rzetelne. Nie jesteśmy zobowiązani do weryfikacji jakichkolwiek informacji lub dokumentów otrzymanych od Zlecającego, w tym informacji dotyczących kosztów i przychodów, udzielonych pożyczek oraz inwestycji zarówno zrealizowanych, jak również planowanych do realizacji. \n\nZlecający potwierdza, że Model poprawnie odzwierciedla przekazane przez Zlecającego dane, założenia i najlepszą wiedzę Zlecającego. \n\nZlecający rozumie, że zmiana jakichkolwiek założeń, wartości i odwołań może spowodować zmianę rezultatów Modelu. \n\nPrognozy finansowe otrzymane od Zlecającego i założenia zawarte w Modelu nie stanowią zapewnienia osiągnięcia zakładanych w prognozach finansowych wyników finansowych.\n\nModel musi być prezentowany w całości i jest przygotowany jedynie w celach opisanych w umowie między Zlecającym a Zleceniobiorcą. Model nie może być rozpowszechniany osobom trzecim bez pisemnej zgody Zleceniobiorcy.\n"]

{"sheet":"Makro i swap","index":1,"n_rows":9,"n_cols":13,"rows_kept":9,"cut":false,"hidden":false,"merged":[]}
[]
["ZAŁOŻENIA MAKROEKONOMICZNE",null,2022,{"$f":"C2+1","v":2023},{"$f":"D2+1","v":2024},2025,2026,2027,2028,2029,2030,2031,2032]
[]
["Inflacja",null,1.1080000000000001,1.0900000000000001,1.042,1.03,1.03,1.03,1.03,1.03,1.03,1.03,1.03]
["Dynamika realnego wzrostu płac",null,1.03,1.03,1.03,1.03,1.03,1.03,1.03,1.03,1.03,1.03,1.03]
[]
[]
["Stopy SWAP dla SGEI – Komisja Europejska","Marża",0.01,null,"https://ec.europa.eu/competition-policy/state-aid/legislation/sgei/swap-rate-proxies_en"]
["1.01.2022–30.06.2022",null,2.5399999999999999E-2]

{"sheet":"Odpady","index":2,"n_rows":15,"n_cols":15,"rows_kept":15,"cut":false,"hidden":false,"merged":[]}
[]
[" Odpady",null,"Jednostka",null,null,2023,{"$f":"F2+1","v":2024},{"$f":"G2+1","v":2025},2026,2027,2028,{"$f":"K2+1","v":2029},{"$f":"L2+1","v":2030},{"$f":"M2+1","v":2031},{"$f":"N2+1","v":2032}]
[]
["Akcje edukacyjne",null,"tona"]
["20 03 01",null,"tona"]
["20 03 07",null,"tona"]
["20 01 35, 20 01 36",null,"tona"]
["17 01 podgrupa",null,"tona"]
["16 01 03",null,"tona"]
["20 03 99",null,"tona"]
["20 01 01",null,"tona"]
["20 01 02",null,"tona"]
["15 01 02",null,"tona"]
["20 01 40",null,"tona"]
["Inne",null,"tona"]

{"sheet":"KOSZTY NETTO>>","index":3,"n_rows":4,"n_cols":2,"rows_kept":4,"cut":false,"hidden":false,"merged":[]}
[]
[]
[null,"Przychody"]
[null,"Koszty"]

{"sheet":"koszty netto_nieruch ogólnodost","index":4,"n_rows":168,"n_cols":15,"rows_kept":168,"cut":false,"hidden":false,"merged":[[108,0,108,1]]}
[]
[]
[]
["KOSZTY OPERACYJNE – AKCJE EDUKACYJNE",null,"Jednostka",null,null,2023,{"$f":"F4+1","v":2024},{"$f":"G4+1","v":2025},2026,2027,2028,{"$f":"K4+1","v":2029},{"$f":"L4+1","v":2030},{"$f":"M4+1","v":2031},{"$f":"N4+1","v":2032}]
[]
["Koszty operacyjne",null,"PLN"]
["Amortyzacja",null,"PLN"]
["Zużycie materiałów i energii",null,"PLN"]
["Usługi obce",null,"PLN"]
["Podatki i opłaty",null,"PLN"]
["Wynagrodzenia oraz ubezpieczenia społeczne i inne świadczenia",null,"PLN"]
["Pozostałe koszty rodzajowe",null,"PLN"]
["Wartość sprzedanych towarów i materiałów",null,"PLN"]
[]
[]
[]
["Amortyzacja – prognoza",null,"PLN"]
["Koszty bezpośrednie",null,"PLN"]
["Koszty pośrednie",null,"PLN"]
["Klucz podziałowy"]
[]
["Amortyzacja – wartości rzeczywiste w danym roku",null,"PLN"]
["Koszty bezpośrednie",null,"PLN"]
["Koszty pośrednie",null,"PLN"]
[]
[]
[]
["Zużycie materiałów i energii – prognoza",null,"PLN"]
["Koszty bezpośrednie",null,"PLN"]
["Koszty pośrednie",null,"PLN"]
["Klucz podziałowy",null,"PLN"]
[]
["Zużycie materiałów i energii – wartości rzeczywiste w danym roku",null,"PLN"]
["Koszty bezpośrednie",null,"PLN"]
["Koszty pośrednie",null,"PLN"]
[]
["Paliwo – samochód dostawczy"]
["Zużycie",null,"l/100 km"]
["Liczba km",null,"km"]
["Cena jednostkowa",null,"PLN/l"]
[]
["Paliwo – samochód ciężarowy"]
["Zużycie",null,"l/100 km"]
["Liczba km",null,"km"]
["Cena jednostkowa",null,"PLN/l"]
[]
[]
["Usługi obce – prognoza",null,"PLN"]
["Koszty bezpośrednie",null,"PLN"]
["Koszty pośrednie",null,"PLN"]
["Klucz podziałowy"]
[]
["Usługi obce – wartości rzeczywiste w danym roku",null,"PLN",null,null,null,{"$f":"IF(AND(G54=\"\",G55=\"\"),\"\",G54+G55)","v":""},"","","","",{"$f":"IF(AND(L54=\"\",L55=\"\"),\"\",L54+L55)","v":""},"","",""]
["Koszty bezpośrednie",null,"PLN"]
["Koszty pośrednie",null,"PLN"]
[]
["Zagospodarowanie odpadów – stawka jednostkowa"]
["20 03 01",null,"PLN/Mg"]
["20 03 07",null,"PLN/Mg"]
["20 01 35, 20 01 36",null,"PLN/Mg"]
["17 01 podgrupa",null,"PLN/Mg"]
["16 01 03",null,"PLN/Mg"]
["20 03 99",null,"PLN/Mg"]
["20 01 01",null,"PLN/Mg"]
["20 01 02",null,"PLN/Mg"]
["15 01 02",null,"PLN/Mg"]
["20 01 40",null,"PLN/Mg"]
["Inne",null,"PLN/Mg"]
[]
["Zagospodarowanie odpadów – ilości"]
["20 03 01",null,"Mg"]
["20 03 07",null,"Mg"]
["20 01 35, 20 01 36",null,"Mg"]
["17 01 podgrupa",null,"Mg"]
["16 01 03",null,"Mg"]
["20 03 99",null,"Mg"]
["20 01 01",null,"Mg"]
["20 01 02",null,"Mg"]
["15 01 02",null,"Mg"]
["20 01 40",null,"Mg"]
["Inne",null,"Mg"]
[]
["Przeglądy – samochód dostawczy"]
["Cena jednostkowa",null,"PLN/przegląd"]
["Ilość",null,"przegląd"]
[]
["Przeglądy – samochód ciężarowy"]
["Cena jednostkowa",null,"PLN/przegląd"]
["Ilość",null,"przegląd"]
[]
[]
["Podatki i opłaty – prognoza",null,"PLN"]
["Koszty bezpośrednie",null,"PLN"]
["Koszty pośrednie",null,"PLN"]
["Klucz podziałowy"]
[]
["Podatki i opłaty – wartości rzeczywiste w danym roku",null,"PLN"]
["Koszty bezpośrednie",null,"PLN"]
["Koszty pośrednie",null,"PLN"]
[]
[]
[]
[]
["Wynagrodzenia oraz ubezpieczenia społeczne i inne świadczenia – prognoza",null,"PLN"]
["Koszty bezpośrednie",null,"PLN"]
["Koszty pośrednie",null,"PLN"]
["Klucz podziałowy"]
[]
["Wynagrodzenia oraz ubezpieczenia społeczne i inne świadczenia – wartości rzeczywiste w danym roku",null,"PLN"]
["Koszty bezpośrednie",null,"PLN"]
["Koszty pośrednie",null,"PLN"]
[]
["Liczba roboczogodzin",null,"godziny"]
["Stawka jednostkowa",null,"PLN/godzina"]
[]
[]
["Pozostałe koszty rodzajowe – prognoza",null,"PLN"]
["Koszty bezpośrednie",null,"PLN"]
["Koszty pośrednie",null,"PLN"]
["Klucz podziałowy"]
[]
["Pozostałe koszty rodzajowe – wartości rzeczywiste w danym roku",null,"PLN"]
["Koszty bezpośrednie",null,"PLN"]
["Koszty pośrednie",null,"PLN"]
[]
["Leasing"]
["Samochód dostawczy"]
["Samochód ciężarowy"]
[]
["Inne usługi związane z działanimi interwencyjnymi"]
["Koszt jednostkowy",null,"PLN/dzień"]
["Liczba dni",null,"dni"]
["Zakup drobnych narzędzi",null,"PLN/dzień"]
[]
[]
["Wartość sprzedanych towarów i materiałów – prognoza",null,"PLN"]
[]
["Wartość sprzedanych towarów i materiałów – wartości rzeczywiste w danym roku",null,"PLN"]
[]
[]
[]
[]
[]
["PRZYCHODY BEZPOŚREDNIO POWIĄZANE Z ZADANIEM – AKCJE EDUKACYJNE",null,"Jednostka",null,null,{"$f":"F152","v":2023},{"$f":"F144+1","v":2024},{"$f":"G144+1","v":2025},2026,2027,2028,{"$f":"K144+1","v":2029},{"$f":"L144+1","v":2030},{"$f":"M144+1","v":2031},{"$f":"N144+1","v":2032}]
[]
["Wyszczególnienie",null,"PLN"]
["Wyszczególnienie",null,"PLN"]
["Przychody razem – PROGNOZA",null,"PLN",null,null,{"$f":"F146+F147","v":0},{"$f":"G146+G147","v":0},0,0,0,0,{"$f":"L146+L147","v":0},0,0,0]
["Przychody razem – WYKONANIE",null,"PLN"]
[]
[]
["UZYSKANE PRZYSPORZENIA – AKCJE EDUKACYJNE",null,"Jednostka",null,null,{"$f":"F4","v":2023},{"$f":"F152+1","v":2024},{"$f":"G152+1","v":2025},2026,2027,2028,{"$f":"K152+1","v":2029},{"$f":"L152+1","v":2030},{"$f":"M152+1","v":2031},{"$f":"N152+1","v":2032}]
[]
["Dokapitalizowanie i inne przysporzenia ze środków publicznych związane z realizacją Zadania – PROGNOZA",null,"PLN"]
["Dokapitalizowanie i inne przysporzenia ze środków publicznych związane z realizacją Zadania – WYKONANIE",null,"PLN"]
[]
[]
["PRZYCHODY I KOSZTY FINANSOWE – AKCJE EDUKACYJNE",null,null,null,null,{"$f":"F152","v":2023},{"$f":"F158+1","v":2024},{"$f":"G158+1","v":2025},2026,2027,2028,{"$f":"K158+1","v":2029},{"$f":"L158+1","v":2030},{"$f":"M158+1","v":2031},{"$f":"N158+1","v":2032}]
[]
["Przychody finansowe",null,"PLN"]
["Koszty finansowe",null,"PLN"]
["Pozostałe przychody operacyjne",null,"PLN"]
["Pozostałe koszty operacyjne",null,"PLN"]
[]
[]
["KARY – AKCJE EDUKACYJNE",null,"Jednostka",null,null,{"$f":"F158","v":2023},{"$f":"F166+1","v":2024},2025,2026,2027,2028,{"$f":"K166+1","v":2029},{"$f":"L166+1","v":2030},{"$f":"M166+1","v":2031},{"$f":"N166+1","v":2032}]
[]
["Naliczone i zapłacone kary z tytułu nienależytej realizacji Zadania",null,"PLN"]

{"sheet":"Rekompensata>>","index":5,"n_rows":0,"n_cols":0,"rows_kept":0,"cut":false,"hidden":false,"merged":[]}

{"sheet":"Rekompensata_ogolem","index":6,"n_rows":99,"n_cols":16,"rows_kept":99,"cut":false,"hidden":false,"merged":[]}
[]
["WYNAGRODZENIE",null,"Jednostka",null,null,{"$f":"'koszty netto_nieruch ogólnodost'!F4","v":2023},{"$f":"F2+1","v":2024},2025,2026,2027,2028,{"$f":"K2+1","v":2029},{"$f":"L2+1","v":2030},{"$f":"M2+1","v":2031},{"$f":"N2+1","v":2032},"RAZEM"]
[]
["Uzasadnione koszty netto",null,"PLN"]
[]
["Koszty operacyjne",null,"PLN"]
["Koszty finansowe oraz pozostałe koszty operacyjne",null,"PLN"]
["Inne przysporzenia ze środków publicznych",null,"PLN"]
["Przychody finansowe oraz pozostałe przychody operacyjne",null,"PLN"]
["Przychody bezpośrednio powiązane z Zadaniem",null,"PLN"]
["Podatek dochodowy",null,"PLN"]
[]
[null,null,null,null,"19%*rozsądny zysk"]
["Rozsądny zysk",null,"PLN"]
[]
["Należna rekompensata z uwzględnieniem rozsądnego zysku – prognoza",null,"PLN",1.0126446301911913]
[]
["Przychody – zagospodarowanie odpadów",null,"PLN",null,null,{"$f":"SUMPRODUCT(F85:F95,F45:F55)","v":0},{"$f":"SUMPRODUCT(G85:G95,G45:G55)","v":0},0,0,0,0,{"$f":"SUMPRODUCT(L85:L95,L45:L55)","v":0},0,0,0,{"$f":"SUM(F18:K18)","v":0}]
[]
["Przychody – pozostałe usługi",null,"PLN",null,null,{"$f":"'koszty netto_nieruch ogólnodost'!F131*'koszty netto_nieruch ogólnodost'!F132+'koszty netto_nieruch ogólnodost'!F133","v":0},{"$f":"'koszty netto_nieruch ogólnodost'!G131*'koszty netto_nieruch ogólnodost'!G132+'koszty netto_nieruch ogólnodost'!G133","v":0},{"$f":"'koszty netto_nieruch ogólnodost'!H131*'koszty netto_nieruch ogólnodost'!H132+'koszty netto_nieruch ogólnodost'!H133","v":0},{"$f":"'koszty netto_nieruch ogólnodost'!I131*'koszty netto_nieruch ogólnodost'!I132+'koszty netto_nieruch ogólnodost'!I133","v":0},{"$f":"'koszty netto_nieruch ogólnodost'!J131*'koszty netto_nieruch ogólnodost'!J132+'koszty netto_nieruch ogólnodost'!J133","v":0},{"$f":"'koszty netto_nieruch ogólnodost'!K131*'koszty netto_nieruch ogólnodost'!K132+'koszty netto_nieruch ogólnodost'!K133","v":0},{"$f":"'koszty netto_nieruch ogólnodost'!L131*'koszty netto_nieruch ogólnodost'!L132+'koszty netto_nieruch ogólnodost'!L133","v":0},{"$f":"'koszty netto_nieruch ogólnodost'!M131*'koszty netto_nieruch ogólnodost'!M132+'koszty netto_nieruch ogólnodost'!M133","v":0},{"$f":"'koszty netto_nieruch ogólnodost'!N131*'koszty netto_nieruch ogólnodost'!N132+'koszty netto_nieruch ogólnodost'!N133","v":0},{"$f":"'koszty netto_nieruch ogólnodost'!O131*'koszty netto_nieruch ogólnodost'!O132+'koszty netto_nieruch ogólnodost'!O133","v":0},{"$f":"SUM(F20:K20)","v":0}]
[]
[]
["Maksymalna wartość rozsądnego zysku","%",{"$f":"'Makro i swap'!C9+'Makro i swap'!C8","v":3.5400000000000001E-2}]
[]
["Weryfikacja Rozsądnego zysku",null,"Jednostka",null,null,{"$f":"F2","v":2023},{"$f":"F25+1","v":2024},{"$f":"G25+1","v":2025},{"$f":"H25+1","v":2026},{"$f":"I25+1","v":2027},{"$f":"J25+1","v":2028},{"$f":"K25+1","v":2029},{"$f":"L25+1","v":2030},{"$f":"M25+1","v":2031},{"$f":"N25+1","v":2032}]
["Kapitał własny na początek okresu"]
["Kapitał własny na koniec okresu"]
["Średni kapitał własny Spółki"]
[]
["Przychody ze sprzedaży ogółem"]
["Przychody z tyt. realizacji Zadania"]
["Udział przychodowy"]
[]
["Kapitał własny będący podstawą kalkulacji stopy zwrotu z kapitału własnego"]
["Kwota Rozsądnego zysku"]
["Stopa zwrotu z kapitału własnego"]
[]
["Czy Rozsądny zysk jest nadmierny?"]
[]
[]
["Kalkulacja stawki – akcje edukacyjne",null,"Jednostka",null,null,{"$f":"F25","v":2023},{"$f":"F41+1","v":2024},{"$f":"G41+1","v":2025},{"$f":"H41+1","v":2026},{"$f":"I41+1","v":2027},{"$f":"J41+1","v":2028},{"$f":"K41+1","v":2029},2030,2031,2032]
[{"$f":"#REF!*100","v":{"$error":"#REF!"}}]
["Należna rekompensata z rozsądnym zyskiem",null,"PLN",null,null,{"$f":"F4+F14-('koszty netto_nieruch ogólnodost'!F131*'koszty netto_nieruch ogólnodost'!F132+'koszty netto_nieruch ogólnodost'!F133)","v":0},{"$f":"G4+G14-('koszty netto_nieruch ogólnodost'!G131*'koszty netto_nieruch ogólnodost'!G132+'koszty netto_nieruch ogólnodost'!G133)","v":0},{"$f":"H4+H14-('koszty netto_nieruch ogólnodost'!H131*'koszty netto_nieruch ogólnodost'!H132+'koszty netto_nieruch ogólnodost'!H133)","v":0},{"$f":"I4+I14-('koszty netto_nieruch ogólnodost'!I131*'koszty netto_nieruch ogólnodost'!I132+'koszty netto_nieruch ogólnodost'!I133)","v":0},{"$f":"J4+J14-('koszty netto_nieruch ogólnodost'!J131*'koszty netto_nieruch ogólnodost'!J132+'koszty netto_nieruch ogólnodost'!J133)","v":0},{"$f":"K4+K14-('koszty netto_nieruch ogólnodost'!K131*'koszty netto_nieruch ogólnodost'!K132+'koszty netto_nieruch ogólnodost'!K133)","v":0},{"$f":"L4+L14-('koszty netto_nieruch ogólnodost'!L131*'koszty netto_nieruch ogólnodost'!L132+'koszty netto_nieruch ogólnodost'!L133)","v":0},{"$f":"M4+M14-('koszty netto_nieruch ogólnodost'!M131*'koszty netto_nieruch ogólnodost'!M132+'koszty netto_nieruch ogólnodost'!M133)","v":0},{"$f":"N4+N14-('koszty netto_nieruch ogólnodost'!N131*'koszty netto_nieruch ogólnodost'!N132+'koszty netto_nieruch ogólnodost'!N133)","v":0},{"$f":"O4+O14-('koszty netto_nieruch ogólnodost'!O131*'koszty netto_nieruch ogólnodost'!O132+'koszty netto_nieruch ogólnodost'!O133)","v":0}]
[]
["Ilość odpadów 20 03 01",null,"Mg",null,null,{"$f":"Odpady!F5","v":0},{"$f":"Odpady!G5","v":0},{"$f":"Odpady!H5","v":0},{"$f":"Odpady!I5","v":0},{"$f":"Odpady!J5","v":0},{"$f":"Odpady!K5","v":0},{"$f":"Odpady!L5","v":0},{"$f":"Odpady!M5","v":0},{"$f":"Odpady!N5","v":0},{"$f":"Odpady!O5","v":0}]
["Ilość odpadów 20 03 07",null,"Mg",null,null,{"$f":"Odpady!F6","v":0},{"$f":"Odpady!G6","v":0},{"$f":"Odpady!H6","v":0},{"$f":"Odpady!I6","v":0},{"$f":"Odpady!J6","v":0},{"$f":"Odpady!K6","v":0},{"$f":"Odpady!L6","v":0},{"$f":"Odpady!M6","v":0},{"$f":"Odpady!N6","v":0},{"$f":"Odpady!O6","v":0}]
["Ilość odpadów 20 01 35, 20 01 36",null,"Mg",null,null,{"$f":"Odpady!F7","v":0},{"$f":"Odpady!G7","v":0},{"$f":"Odpady!H7","v":0},{"$f":"Odpady!I7","v":0},{"$f":"Odpady!J7","v":0},{"$f":"Odpady!K7","v":0},{"$f":"Odpady!L7","v":0},{"$f":"Odpady!M7","v":0},{"$f":"Odpady!N7","v":0},{"$f":"Odpady!O7","v":0}]
["Ilość odpadów 17 01 podgrupa",null,"Mg",null,null,{"$f":"Odpady!F8","v":0},{"$f":"Odpady!G8","v":0},{"$f":"Odpady!H8","v":0},{"$f":"Odpady!I8","v":0},{"$f":"Odpady!J8","v":0},{"$f":"Odpady!K8","v":0},{"$f":"Odpady!L8","v":0},{"$f":"Odpady!M8","v":0},{"$f":"Odpady!N8","v":0},{"$f":"Odpady!O8","v":0}]
["Ilość odpadów 16 01 03",null,"Mg",null,null,{"$f":"Odpady!F9","v":0},{"$f":"Odpady!G9","v":0},{"$f":"Odpady!H9","v":0},{"$f":"Odpady!I9","v":0},{"$f":"Odpady!J9","v":0},{"$f":"Odpady!K9","v":0},{"$f":"Odpady!L9","v":0},{"$f":"Odpady!M9","v":0},{"$f":"Odpady!N9","v":0},{"$f":"Odpady!O9","v":0}]
["Ilość odpadów 20 03 99",null,"Mg",null,null,{"$f":"Odpady!F10","v":0},{"$f":"Odpady!G10","v":0},{"$f":"Odpady!H10","v":0},{"$f":"Odpady!I10","v":0},{"$f":"Odpady!J10","v":0},{"$f":"Odpady!K10","v":0},{"$f":"Odpady!L10","v":0},{"$f":"Odpady!M10","v":0},{"$f":"Odpady!N10","v":0},{"$f":"Odpady!O10","v":0}]
["Ilość odpadów 20 01 01",null,"Mg",null,null,{"$f":"Odpady!F11","v":0},{"$f":"Odpady!G11","v":0},{"$f":"Odpady!H11","v":0},{"$f":"Odpady!I11","v":0},{"$f":"Odpady!J11","v":0},{"$f":"Odpady!K11","v":0},{"$f":"Odpady!L11","v":0},{"$f":"Odpady!M11","v":0},{"$f":"Odpady!N11","v":0},{"$f":"Odpady!O11","v":0}]
["Ilość odpadów 20 01 02",null,"Mg",null,null,{"$f":"Odpady!F12","v":0},{"$f":"Odpady!G12","v":0},{"$f":"Odpady!H12","v":0},{"$f":"Odpady!I12","v":0},{"$f":"Odpady!J12","v":0},{"$f":"Odpady!K12","v":0},{"$f":"Odpady!L12","v":0},{"$f":"Odpady!M12","v":0},{"$f":"Odpady!N12","v":0},{"$f":"Odpady!O12","v":0}]
["Ilość odpadów 15 01 02",null,"Mg",null,null,{"$f":"Odpady!F13","v":0},{"$f":"Odpady!G13","v":0},{"$f":"Odpady!H13","v":0},{"$f":"Odpady!I13","v":0},{"$f":"Odpady!J13","v":0},{"$f":"Odpady!K13","v":0},{"$f":"Odpady!L13","v":0},{"$f":"Odpady!M13","v":0},{"$f":"Odpady!N13","v":0},{"$f":"Odpady!O13","v":0}]
["Ilość odpadów 20 01 40",null,"Mg",null,null,{"$f":"Odpady!F14","v":0},{"$f":"Odpady!G14","v":0},{"$f":"Odpady!H14","v":0},{"$f":"Odpady!I14","v":0},{"$f":"Odpady!J14","v":0},{"$f":"Odpady!K14","v":0},{"$f":"Odpady!L14","v":0},{"$f":"Odpady!M14","v":0},{"$f":"Odpady!N14","v":0},{"$f":"Odpady!O14","v":0}]
["Inne",null,"Mg",null,null,{"$f":"Odpady!F15","v":0},{"$f":"Odpady!G15","v":0},{"$f":"Odpady!H15","v":0},{"$f":"Odpady!I15","v":0},{"$f":"Odpady!J15","v":0},{"$f":"Odpady!K15","v":0},{"$f":"Odpady!L15","v":0},{"$f":"Odpady!M15","v":0},{"$f":"Odpady!N15","v":0},{"$f":"Odpady!O15","v":0}]
["Ilość odpadów RAZEM",null,"Mg",null,null,{"$f":"SUM(F45:F55)","v":0},0,0,0,0,0,{"$f":"SUM(L45:L55)","v":0},0,0,0]
[]
["Udział odpadów"]
["20 03 01",null,"%"]
["20 03 07",null,"%"]
["20 01 35, 20 01 36",null,"%"]
["17 01 podgrupa",null,"%"]
["16 01 03",null,"%"]
["20 03 99",null,"%"]
["20 01 01",null,"%"]
["20 01 02",null,"%"]
["15 01 02",null,"%"]
["20 01 40",null,"%"]
["Inne",null,"%"]
[]
["Należna rekompensata według kodu odpadów"]
["20 03 01",null,"PLN"]
["20 03 07",null,"PLN"]
["20 01 35, 20 01 36",null,"PLN"]
["17 01 podgrupa",null,"PLN"]
["16 01 03",null,"PLN"]
["20 03 99",null,"PLN"]
["20 01 01",null,"PLN"]
["20 01 02",null,"PLN"]
["15 01 02",null,"PLN"]
["20 01 40",null,"PLN"]
["Inne",null,"PLN"]
[]
["STAWKA ZA ZAGOSPODAROWANIE ODPADÓW"]
["20 03 01",null,"PLN/Mg",null,null,{"$f":"IFERROR(F72/F45,0)","v":0},0,0,0,0,0,{"$f":"IFERROR(L72/L45,0)","v":0},0,0,0]
["20 03 07",null,"PLN/Mg",null,null,{"$f":"IFERROR(F73/F46,0)","v":0},0,0,0,0,0,0,0,0,0]
["20 01 35, 20 01 36",null,"PLN/Mg",null,null,{"$f":"IFERROR(F74/F47,0)","v":0},0,0,0,0,0,0,0,0,0]
["17 01 podgrupa",null,"PLN/Mg",null,null,{"$f":"IFERROR(F75/F48,0)","v":0},0,0,0,0,0,0,0,0,0]
["16 01 03",null,"PLN/Mg",null,null,{"$f":"IFERROR(F76/F49,0)","v":0},0,0,0,0,0,0,0,0,0]
["20 03 99",null,"PLN/Mg",null,null,{"$f":"IFERROR(F77/F50,0)","v":0},0,0,0,0,0,0,0,0,0]
["20 01 01",null,"PLN/Mg",null,null,{"$f":"IFERROR(F78/F51,0)","v":0},0,0,0,0,0,0,0,0,0]
["20 01 02",null,"PLN/Mg",null,null,{"$f":"IFERROR(F79/F52,0)","v":0},0,0,0,0,0,0,0,0,0]
["15 01 02",null,"PLN/Mg",null,null,{"$f":"IFERROR(F80/F53,0)","v":0},0,0,0,0,0,0,0,0,0]
["20 01 40",null,"PLN/Mg",null,null,{"$f":"IFERROR(F81/F54,0)","v":0},0,0,0,0,0,0,0,0,0]
["Inne",null,"PLN/Mg",null,null,{"$f":"IFERROR(F82/F55,0)","v":0},0,0,0,0,0,0,0,0,0]
[]
[]
[]
[null,null,null,null,null,null,null,null,null,1]